Workbook

Sheet 1. Raming met kostenposten
B1: Begrotingsformat Veilige Infra en Doorfietsroutes 2025
B2: 1. Raming met kostenposten | J2: versie 1 - 23 april 2025 | L2: maak een keuze | M2: maak een keuze | N2: maak een keuze
B3: Naam project | C3: Naam project | D3: ALLEEN DE WITTE CELLEN ZIJN INVULBAAR | L3: Ja | M3: Subsidiabel | N3: 0.35
B4: Wegbeheerder | C4: Naam wegbeheerder | L4: Nee | M4: Niet subsidiabel | N4: 0.75
B5: Fase | C5: Naam fase | N5: 0.9
B6: Datum | C6: datum | N6: Maatwerk
B7: Prijspeil | C7: jaartal
B8: Opsteller | C8: Naam
B9: Controle | C9: Naam
B11: Opmerkingen | C11: Ruimte voor een eventuele toelichting
G12: % Subsidiabel | H12: maak een keuze | K12: subsidie 90% bij infraproject voor een doorfietsroute
G13: % Maatwerk | H13: 0 | K13: subsidie 75% bij infraproject ten behoeve van verkeersveiligheid wegen en fietspaden
H14: Vul bij "Maatwerk" % in! | K14: subsidie 35% bij iinfraproject met rioleringswerkzaamheden
B17: code | C17: beschrijving | D17: hoeveelheden | E17: eenheid | F17: eenheidsprijs | G17: totaal | H17: subsidiecategorie | I17: Subsidiabel | J17: duurzaamheid
H18: (artikel 3)
D20: 1 | E20: 1 | F20: 0.001 | G20: =D20*F20 -> 0.001 | H20: maak een keuze | I20: =IF('1. Raming met kostenposten'!H20="Subsidiabel",'1. Raming met kostenposten'!G20,0) -> 0 | J20: maak een keuze
G21: =D21*F21 -> 0 | H21: maak een keuze | I21: =IF('1. Raming met kostenposten'!H21="Subsidiabel",'1. Raming met kostenposten'!G21,0) -> 0 | J21: maak een keuze
G22: 0 | H22: maak een keuze | I22: =IF('1. Raming met kostenposten'!H22="Subsidiabel",'1. Raming met kostenposten'!G22,0) -> 0 | J22: maak een keuze
G23: 0 | H23: maak een keuze | I23: =IF('1. Raming met kostenposten'!H23="Subsidiabel",'1. Raming met kostenposten'!G23,0) -> 0 | J23: maak een keuze
G24: 0 | H24: maak een keuze | I24: =IF('1. Raming met kostenposten'!H24="Subsidiabel",'1. Raming met kostenposten'!G24,0) -> 0 | J24: maak een keuze
G25: 0 | H25: maak een keuze | I25: =IF('1. Raming met kostenposten'!H25="Subsidiabel",'1. Raming met kostenposten'!G25,0) -> 0 | J25: maak een keuze
G26: 0 | H26: maak een keuze | I26: =IF('1. Raming met kostenposten'!H26="Subsidiabel",'1. Raming met kostenposten'!G26,0) -> 0 | J26: maak een keuze
G27: 0 | H27: maak een keuze | I27: =IF('1. Raming met kostenposten'!H27="Subsidiabel",'1. Raming met kostenposten'!G27,0) -> 0 | J27: maak een keuze
G28: 0 | H28: maak een keuze | I28: =IF('1. Raming met kostenposten'!H28="Subsidiabel",'1. Raming met kostenposten'!G28,0) -> 0 | J28: maak een keuze
G29: 0 | H29: maak een keuze | I29: =IF('1. Raming met kostenposten'!H29="Subsidiabel",'1. Raming met kostenposten'!G29,0) -> 0 | J29: maak een keuze
G30: 0 | H30: maak een keuze | I30: =IF('1. Raming met kostenposten'!H30="Subsidiabel",'1. Raming met kostenposten'!G30,0) -> 0 | J30: maak een keuze
G31: 0 | H31: maak een keuze | I31: =IF('1. Raming met kostenposten'!H31="Subsidiabel",'1. Raming met kostenposten'!G31,0) -> 0 | J31: maak een keuze
G32: 0 | H32: maak een keuze | I32: =IF('1. Raming met kostenposten'!H32="Subsidiabel",'1. Raming met kostenposten'!G32,0) -> 0 | J32: maak een keuze
G33: 0 | H33: maak een keuze | I33: =IF('1. Raming met kostenposten'!H33="Subsidiabel",'1. Raming met kostenposten'!G33,0) -> 0 | J33: maak een keuze
G34: 0 | H34: maak een keuze | I34: =IF('1. Raming met kostenposten'!H34="Subsidiabel",'1. Raming met kostenposten'!G34,0) -> 0 | J34: maak een keuze
G35: 0 | H35: maak een keuze | I35: =IF('1. Raming met kostenposten'!H35="Subsidiabel",'1. Raming met kostenposten'!G35,0) -> 0 | J35: maak een keuze
G36: 0 | H36: maak een keuze | I36: =IF('1. Raming met kostenposten'!H36="Subsidiabel",'1. Raming met kostenposten'!G36,0) -> 0 | J36: maak een keuze
G37: 0 | H37: maak een keuze | I37: =IF('1. Raming met kostenposten'!H37="Subsidiabel",'1. Raming met kostenposten'!G37,0) -> 0 | J37: maak een keuze
G38: 0 | H38: maak een keuze | I38: =IF('1. Raming met kostenposten'!H38="Subsidiabel",'1. Raming met kostenposten'!G38,0) -> 0 | J38: maak een keuze
G39: 0 | H39: maak een keuze | I39: =IF('1. Raming met kostenposten'!H39="Subsidiabel",'1. Raming met kostenposten'!G39,0) -> 0 | J39: maak een keuze
G40: 0 | H40: maak een keuze | I40: =IF('1. Raming met kostenposten'!H40="Subsidiabel",'1. Raming met kostenposten'!G40,0) -> 0 | J40: maak een keuze
G41: 0 | H41: maak een keuze | I41: =IF('1. Raming met kostenposten'!H41="Subsidiabel",'1. Raming met kostenposten'!G41,0) -> 0 | J41: maak een keuze
G42: 0 | H42: maak een keuze | I42: =IF('1. Raming met kostenposten'!H42="Subsidiabel",'1. Raming met kostenposten'!G42,0) -> 0 | J42: maak een keuze
G43: 0 | H43: maak een keuze | I43: =IF('1. Raming met kostenposten'!H43="Subsidiabel",'1. Raming met kostenposten'!G43,0) -> 0 | J43: maak een keuze
G44: 0 | H44: maak een keuze | I44: =IF('1. Raming met kostenposten'!H44="Subsidiabel",'1. Raming met kostenposten'!G44,0) -> 0 | J44: maak een keuze
G45: 0 | H45: maak een keuze | I45: =IF('1. Raming met kostenposten'!H45="Subsidiabel",'1. Raming met kostenposten'!G45,0) -> 0 | J45: maak een keuze
G46: 0 | H46: maak een keuze | I46: =IF('1. Raming met kostenposten'!H46="Subsidiabel",'1. Raming met kostenposten'!G46,0) -> 0 | J46: maak een keuze
G47: 0 | H47: maak een keuze | I47: =IF('1. Raming met kostenposten'!H47="Subsidiabel",'1. Raming met kostenposten'!G47,0) -> 0 | J47: maak een keuze
G48: 0 | H48: maak een keuze | I48: =IF('1. Raming met kostenposten'!H48="Subsidiabel",'1. Raming met kostenposten'!G48,0) -> 0 | J48: maak een keuze
G49: 0 | H49: maak een keuze | I49: =IF('1. Raming met kostenposten'!H49="Subsidiabel",'1. Raming met kostenposten'!G49,0) -> 0 | J49: maak een keuze
G50: 0 | H50: maak een keuze | I50: =IF('1. Raming met kostenposten'!H50="Subsidiabel",'1. Raming met kostenposten'!G50,0) -> 0 | J50: maak een keuze
G51: 0 | H51: maak een keuze | I51: =IF('1. Raming met kostenposten'!H51="Subsidiabel",'1. Raming met kostenposten'!G51,0) -> 0 | J51: maak een keuze
G52: 0 | H52: maak een keuze | I52: =IF('1. Raming met kostenposten'!H52="Subsidiabel",'1. Raming met kostenposten'!G52,0) -> 0 | J52: maak een keuze
G53: 0 | H53: maak een keuze | I53: =IF('1. Raming met kostenposten'!H53="Subsidiabel",'1. Raming met kostenposten'!G53,0) -> 0 | J53: maak een keuze
G54: 0 | H54: maak een keuze | I54: =IF('1. Raming met kostenposten'!H54="Subsidiabel",'1. Raming met kostenposten'!G54,0) -> 0 | J54: maak een keuze
G55: 0 | H55: maak een keuze | I55: =IF('1. Raming met kostenposten'!H55="Subsidiabel",'1. Raming met kostenposten'!G55,0) -> 0 | J55: maak een keuze
G56: 0 | H56: maak een keuze | I56: =IF('1. Raming met kostenposten'!H56="Subsidiabel",'1. Raming met kostenposten'!G56,0) -> 0 | J56: maak een keuze
G57: 0 | H57: maak een keuze | I57: =IF('1. Raming met kostenposten'!H57="Subsidiabel",'1. Raming met kostenposten'!G57,0) -> 0 | J57: maak een keuze
G58: 0 | H58: maak een keuze | I58: =IF('1. Raming met kostenposten'!H58="Subsidiabel",'1. Raming met kostenposten'!G58,0) -> 0 | J58: maak een keuze
G59: 0 | H59: maak een keuze | I59: =IF('1. Raming met kostenposten'!H59="Subsidiabel",'1. Raming met kostenposten'!G59,0) -> 0 | J59: maak een keuze
G60: 0 | H60: maak een keuze | I60: =IF('1. Raming met kostenposten'!H60="Subsidiabel",'1. Raming met kostenposten'!G60,0) -> 0 | J60: maak een keuze
G61: 0 | H61: maak een keuze | I61: =IF('1. Raming met kostenposten'!H61="Subsidiabel",'1. Raming met kostenposten'!G61,0) -> 0 | J61: maak een keuze
G62: 0 | H62: maak een keuze | I62: =IF('1. Raming met kostenposten'!H62="Subsidiabel",'1. Raming met kostenposten'!G62,0) -> 0 | J62: maak een keuze
G63: 0 | H63: maak een keuze | I63: =IF('1. Raming met kostenposten'!H63="Subsidiabel",'1. Raming met kostenposten'!G63,0) -> 0 | J63: maak een keuze
G64: 0 | H64: maak een keuze | I64: =IF('1. Raming met kostenposten'!H64="Subsidiabel",'1. Raming met kostenposten'!G64,0) -> 0 | J64: maak een keuze
G65: 0 | H65: maak een keuze | I65: =IF('1. Raming met kostenposten'!H65="Subsidiabel",'1. Raming met kostenposten'!G65,0) -> 0 | J65: maak een keuze
G66: 0 | H66: maak een keuze | I66: =IF('1. Raming met kostenposten'!H66="Subsidiabel",'1. Raming met kostenposten'!G66,0) -> 0 | J66: maak een keuze
G67: 0 | H67: maak een keuze | I67: =IF('1. Raming met kostenposten'!H67="Subsidiabel",'1. Raming met kostenposten'!G67,0) -> 0 | J67: maak een keuze
G68: 0 | H68: maak een keuze | I68: =IF('1. Raming met kostenposten'!H68="Subsidiabel",'1. Raming met kostenposten'!G68,0) -> 0 | J68: maak een keuze
G69: 0 | H69: maak een keuze | I69: =IF('1. Raming met kostenposten'!H69="Subsidiabel",'1. Raming met kostenposten'!G69,0) -> 0 | J69: maak een keuze
G70: 0 | H70: maak een keuze | I70: =IF('1. Raming met kostenposten'!H70="Subsidiabel",'1. Raming met kostenposten'!G70,0) -> 0 | J70: maak een keuze
G71: 0 | H71: maak een keuze | I71: =IF('1. Raming met kostenposten'!H71="Subsidiabel",'1. Raming met kostenposten'!G71,0) -> 0 | J71: maak een keuze
G72: 0 | H72: maak een keuze | I72: =IF('1. Raming met kostenposten'!H72="Subsidiabel",'1. Raming met kostenposten'!G72,0) -> 0 | J72: maak een keuze
G73: 0 | H73: maak een keuze | I73: =IF('1. Raming met kostenposten'!H73="Subsidiabel",'1. Raming met kostenposten'!G73,0) -> 0 | J73: maak een keuze
G74: 0 | H74: maak een keuze | I74: =IF('1. Raming met kostenposten'!H74="Subsidiabel",'1. Raming met kostenposten'!G74,0) -> 0 | J74: maak een keuze
G75: 0 | H75: maak een keuze | I75: =IF('1. Raming met kostenposten'!H75="Subsidiabel",'1. Raming met kostenposten'!G75,0) -> 0 | J75: maak een keuze
G76: 0 | H76: maak een keuze | I76: =IF('1. Raming met kostenposten'!H76="Subsidiabel",'1. Raming met kostenposten'!G76,0) -> 0 | J76: maak een keuze
G77: 0 | H77: maak een keuze | I77: =IF('1. Raming met kostenposten'!H77="Subsidiabel",'1. Raming met kostenposten'!G77,0) -> 0 | J77: maak een keuze
G78: 0 | H78: maak een keuze | I78: =IF('1. Raming met kostenposten'!H78="Subsidiabel",'1. Raming met kostenposten'!G78,0) -> 0 | J78: maak een keuze
G79: 0 | H79: maak een keuze | I79: =IF('1. Raming met kostenposten'!H79="Subsidiabel",'1. Raming met kostenposten'!G79,0) -> 0 | J79: maak een keuze
G80: 0 | H80: maak een keuze | I80: =IF('1. Raming met kostenposten'!H80="Subsidiabel",'1. Raming met kostenposten'!G80,0) -> 0 | J80: maak een keuze
G81: 0 | H81: maak een keuze | I81: =IF('1. Raming met kostenposten'!H81="Subsidiabel",'1. Raming met kostenposten'!G81,0) -> 0 | J81: maak een keuze
G82: 0 | H82: maak een keuze | I82: =IF('1. Raming met kostenposten'!H82="Subsidiabel",'1. Raming met kostenposten'!G82,0) -> 0 | J82: maak een keuze
G83: 0 | H83: maak een keuze | I83: =IF('1. Raming met kostenposten'!H83="Subsidiabel",'1. Raming met kostenposten'!G83,0) -> 0 | J83: maak een keuze
G84: 0 | H84: maak een keuze | I84: =IF('1. Raming met kostenposten'!H84="Subsidiabel",'1. Raming met kostenposten'!G84,0) -> 0 | J84: maak een keuze
G85: =D85*F85 -> 0 | H85: maak een keuze | I85: =IF('1. Raming met kostenposten'!H85="Subsidiabel",'1. Raming met kostenposten'!G85,0) -> 0 | J85: maak een keuze
G86: 0 | H86: maak een keuze | I86: =IF('1. Raming met kostenposten'!H86="Subsidiabel",'1. Raming met kostenposten'!G86,0) -> 0 | J86: maak een keuze
G87: 0 | H87: maak een keuze | I87: =IF('1. Raming met kostenposten'!H87="Subsidiabel",'1. Raming met kostenposten'!G87,0) -> 0 | J87: maak een keuze
G88: 0 | H88: maak een keuze | I88: =IF('1. Raming met kostenposten'!H88="Subsidiabel",'1. Raming met kostenposten'!G88,0) -> 0 | J88: maak een keuze
G89: 0 | H89: maak een keuze | I89: =IF('1. Raming met kostenposten'!H89="Subsidiabel",'1. Raming met kostenposten'!G89,0) -> 0 | J89: maak een keuze
G90: 0 | H90: maak een keuze | I90: =IF('1. Raming met kostenposten'!H90="Subsidiabel",'1. Raming met kostenposten'!G90,0) -> 0 | J90: maak een keuze
G91: 0 | H91: maak een keuze | I91: =IF('1. Raming met kostenposten'!H91="Subsidiabel",'1. Raming met kostenposten'!G91,0) -> 0 | J91: maak een keuze
G92: 0 | H92: maak een keuze | I92: =IF('1. Raming met kostenposten'!H92="Subsidiabel",'1. Raming met kostenposten'!G92,0) -> 0 | J92: maak een keuze
G93: 0 | H93: maak een keuze | I93: =IF('1. Raming met kostenposten'!H93="Subsidiabel",'1. Raming met kostenposten'!G93,0) -> 0 | J93: maak een keuze
G94: 0 | H94: maak een keuze | I94: =IF('1. Raming met kostenposten'!H94="Subsidiabel",'1. Raming met kostenposten'!G94,0) -> 0 | J94: maak een keuze
G95: 0 | H95: maak een keuze | I95: =IF('1. Raming met kostenposten'!H95="Subsidiabel",'1. Raming met kostenposten'!G95,0) -> 0 | J95: maak een keuze
G96: 0 | H96: maak een keuze | I96: =IF('1. Raming met kostenposten'!H96="Subsidiabel",'1. Raming met kostenposten'!G96,0) -> 0 | J96: maak een keuze
G97: 0 | H97: maak een keuze | I97: =IF('1. Raming met kostenposten'!H97="Subsidiabel",'1. Raming met kostenposten'!G97,0) -> 0 | J97: maak een keuze
G98: 0 | H98: maak een keuze | I98: =IF('1. Raming met kostenposten'!H98="Subsidiabel",'1. Raming met kostenposten'!G98,0) -> 0 | J98: maak een keuze
G99: 0 | H99: maak een keuze | I99: =IF('1. Raming met kostenposten'!H99="Subsidiabel",'1. Raming met kostenposten'!G99,0) -> 0 | J99: maak een keuze
G100: 0 | H100: maak een keuze | I100: =IF('1. Raming met kostenposten'!H100="Subsidiabel",'1. Raming met kostenposten'!G100,0) -> 0 | J100: maak een keuze
G101: 0 | H101: maak een keuze | I101: =IF('1. Raming met kostenposten'!H101="Subsidiabel",'1. Raming met kostenposten'!G101,0) -> 0 | J101: maak een keuze
G102: 0 | H102: maak een keuze | I102: =IF('1. Raming met kostenposten'!H102="Subsidiabel",'1. Raming met kostenposten'!G102,0) -> 0 | J102: maak een keuze
G103: 0 | H103: maak een keuze | I103: =IF('1. Raming met kostenposten'!H103="Subsidiabel",'1. Raming met kostenposten'!G103,0) -> 0 | J103: maak een keuze
G104: 0 | H104: maak een keuze | I104: =IF('1. Raming met kostenposten'!H104="Subsidiabel",'1. Raming met kostenposten'!G104,0) -> 0 | J104: maak een keuze
G105: 0 | H105: maak een keuze | I105: =IF('1. Raming met kostenposten'!H105="Subsidiabel",'1. Raming met kostenposten'!G105,0) -> 0 | J105: maak een keuze
G106: 0 | H106: maak een keuze | I106: =IF('1. Raming met kostenposten'!H106="Subsidiabel",'1. Raming met kostenposten'!G106,0) -> 0 | J106: maak een keuze
G107: 0 | H107: maak een keuze | I107: =IF('1. Raming met kostenposten'!H107="Subsidiabel",'1. Raming met kostenposten'!G107,0) -> 0 | J107: maak een keuze
G108: 0 | H108: maak een keuze | I108: =IF('1. Raming met kostenposten'!H108="Subsidiabel",'1. Raming met kostenposten'!G108,0) -> 0 | J108: maak een keuze
G109: 0 | H109: maak een keuze | I109: =IF('1. Raming met kostenposten'!H109="Subsidiabel",'1. Raming met kostenposten'!G109,0) -> 0 | J109: maak een keuze
G110: 0 | H110: maak een keuze | I110: =IF('1. Raming met kostenposten'!H110="Subsidiabel",'1. Raming met kostenposten'!G110,0) -> 0 | J110: maak een keuze
G111: 0 | H111: maak een keuze | I111: =IF('1. Raming met kostenposten'!H111="Subsidiabel",'1. Raming met kostenposten'!G111,0) -> 0 | J111: maak een keuze
G112: 0 | H112: maak een keuze | I112: =IF('1. Raming met kostenposten'!H112="Subsidiabel",'1. Raming met kostenposten'!G112,0) -> 0 | J112: maak een keuze
G113: 0 | H113: maak een keuze | I113: =IF('1. Raming met kostenposten'!H113="Subsidiabel",'1. Raming met kostenposten'!G113,0) -> 0 | J113: maak een keuze
G114: 0 | H114: maak een keuze | I114: =IF('1. Raming met kostenposten'!H114="Subsidiabel",'1. Raming met kostenposten'!G114,0) -> 0 | J114: maak een keuze
G115: 0 | H115: maak een keuze | I115: =IF('1. Raming met kostenposten'!H115="Subsidiabel",'1. Raming met kostenposten'!G115,0) -> 0 | J115: maak een keuze
G116: 0 | H116: maak een keuze | I116: =IF('1. Raming met kostenposten'!H116="Subsidiabel",'1. Raming met kostenposten'!G116,0) -> 0 | J116: maak een keuze
G117: 0 | H117: maak een keuze | I117: =IF('1. Raming met kostenposten'!H117="Subsidiabel",'1. Raming met kostenposten'!G117,0) -> 0 | J117: maak een keuze
G118: 0 | H118: maak een keuze | I118: =IF('1. Raming met kostenposten'!H118="Subsidiabel",'1. Raming met kostenposten'!G118,0) -> 0 | J118: maak een keuze
G119: 0 | H119: maak een keuze | I119: =IF('1. Raming met kostenposten'!H119="Subsidiabel",'1. Raming met kostenposten'!G119,0) -> 0 | J119: maak een keuze
G120: 0 | H120: maak een keuze | I120: =IF('1. Raming met kostenposten'!H120="Subsidiabel",'1. Raming met kostenposten'!G120,0) -> 0 | J120: maak een keuze
G121: 0 | H121: maak een keuze | I121: =IF('1. Raming met kostenposten'!H121="Subsidiabel",'1. Raming met kostenposten'!G121,0) -> 0 | J121: maak een keuze
G122: 0 | H122: maak een keuze | I122: =IF('1. Raming met kostenposten'!H122="Subsidiabel",'1. Raming met kostenposten'!G122,0) -> 0 | J122: maak een keuze
G123: 0 | H123: maak een keuze | I123: =IF('1. Raming met kostenposten'!H123="Subsidiabel",'1. Raming met kostenposten'!G123,0) -> 0 | J123: maak een keuze
G124: 0 | H124: maak een keuze | I124: =IF('1. Raming met kostenposten'!H124="Subsidiabel",'1. Raming met kostenposten'!G124,0) -> 0 | J124: maak een keuze
G125: 0 | H125: maak een keuze | I125: =IF('1. Raming met kostenposten'!H125="Subsidiabel",'1. Raming met kostenposten'!G125,0) -> 0 | J125: maak een keuze
G126: 0 | H126: maak een keuze | I126: =IF('1. Raming met kostenposten'!H126="Subsidiabel",'1. Raming met kostenposten'!G126,0) -> 0 | J126: maak een keuze
G127: 0 | H127: maak een keuze | I127: =IF('1. Raming met kostenposten'!H127="Subsidiabel",'1. Raming met kostenposten'!G127,0) -> 0 | J127: maak een keuze
G128: 0 | H128: maak een keuze | I128: =IF('1. Raming met kostenposten'!H128="Subsidiabel",'1. Raming met kostenposten'!G128,0) -> 0 | J128: maak een keuze
G129: 0 | H129: maak een keuze | I129: =IF('1. Raming met kostenposten'!H129="Subsidiabel",'1. Raming met kostenposten'!G129,0) -> 0 | J129: maak een keuze
G130: 0 | H130: maak een keuze | I130: =IF('1. Raming met kostenposten'!H130="Subsidiabel",'1. Raming met kostenposten'!G130,0) -> 0 | J130: maak een keuze
G131: 0 | H131: maak een keuze | I131: =IF('1. Raming met kostenposten'!H131="Subsidiabel",'1. Raming met kostenposten'!G131,0) -> 0 | J131: maak een keuze
G132: 0 | H132: maak een keuze | I132: =IF('1. Raming met kostenposten'!H132="Subsidiabel",'1. Raming met kostenposten'!G132,0) -> 0 | J132: maak een keuze
G133: 0 | H133: maak een keuze | I133: =IF('1. Raming met kostenposten'!H133="Subsidiabel",'1. Raming met kostenposten'!G133,0) -> 0 | J133: maak een keuze
G134: 0 | H134: maak een keuze | I134: =IF('1. Raming met kostenposten'!H134="Subsidiabel",'1. Raming met kostenposten'!G134,0) -> 0 | J134: maak een keuze
G135: 0 | H135: maak een keuze | I135: =IF('1. Raming met kostenposten'!H135="Subsidiabel",'1. Raming met kostenposten'!G135,0) -> 0 | J135: maak een keuze
G136: 0 | H136: maak een keuze | I136: =IF('1. Raming met kostenposten'!H136="Subsidiabel",'1. Raming met kostenposten'!G136,0) -> 0 | J136: maak een keuze
G137: 0 | H137: maak een keuze | I137: =IF('1. Raming met kostenposten'!H137="Subsidiabel",'1. Raming met kostenposten'!G137,0) -> 0 | J137: maak een keuze
G138: 0 | H138: maak een keuze | I138: =IF('1. Raming met kostenposten'!H138="Subsidiabel",'1. Raming met kostenposten'!G138,0) -> 0 | J138: maak een keuze
G139: 0 | H139: maak een keuze | I139: =IF('1. Raming met kostenposten'!H139="Subsidiabel",'1. Raming met kostenposten'!G139,0) -> 0 | J139: maak een keuze
G140: 0 | H140: maak een keuze | I140: =IF('1. Raming met kostenposten'!H140="Subsidiabel",'1. Raming met kostenposten'!G140,0) -> 0 | J140: maak een keuze
G141: 0 | H141: maak een keuze | I141: =IF('1. Raming met kostenposten'!H141="Subsidiabel",'1. Raming met kostenposten'!G141,0) -> 0 | J141: maak een keuze
G142: 0 | H142: maak een keuze | I142: =IF('1. Raming met kostenposten'!H142="Subsidiabel",'1. Raming met kostenposten'!G142,0) -> 0 | J142: maak een keuze
G143: 0 | H143: maak een keuze | I143: =IF('1. Raming met kostenposten'!H143="Subsidiabel",'1. Raming met kostenposten'!G143,0) -> 0 | J143: maak een keuze
G144: 0 | H144: maak een keuze | I144: =IF('1. Raming met kostenposten'!H144="Subsidiabel",'1. Raming met kostenposten'!G144,0) -> 0 | J144: maak een keuze
G145: 0 | H145: maak een keuze | I145: =IF('1. Raming met kostenposten'!H145="Subsidiabel",'1. Raming met kostenposten'!G145,0) -> 0 | J145: maak een keuze
G146: 0 | H146: maak een keuze | I146: =IF('1. Raming met kostenposten'!H146="Subsidiabel",'1. Raming met kostenposten'!G146,0) -> 0 | J146: maak een keuze
G147: 0 | H147: maak een keuze | I147: =IF('1. Raming met kostenposten'!H147="Subsidiabel",'1. Raming met kostenposten'!G147,0) -> 0 | J147: maak een keuze
G148: 0 | H148: maak een keuze | I148: =IF('1. Raming met kostenposten'!H148="Subsidiabel",'1. Raming met kostenposten'!G148,0) -> 0 | J148: maak een keuze
G149: =D149*F149 -> 0 | H149: maak een keuze | I149: =IF('1. Raming met kostenposten'!H149="Subsidiabel",'1. Raming met kostenposten'!G149,0) -> 0 | J149: maak een keuze
G150: =D150*F150 -> 0 | H150: maak een keuze | I150: =IF('1. Raming met kostenposten'!H150="Subsidiabel",'1. Raming met kostenposten'!G150,0) -> 0 | J150: maak een keuze
G151: 0 | H151: maak een keuze | I151: =IF('1. Raming met kostenposten'!H151="Subsidiabel",'1. Raming met kostenposten'!G151,0) -> 0 | J151: maak een keuze
G152: 0 | H152: maak een keuze | I152: =IF('1. Raming met kostenposten'!H152="Subsidiabel",'1. Raming met kostenposten'!G152,0) -> 0 | J152: maak een keuze
G153: 0 | H153: maak een keuze | I153: =IF('1. Raming met kostenposten'!H153="Subsidiabel",'1. Raming met kostenposten'!G153,0) -> 0 | J153: maak een keuze
G154: 0 | H154: maak een keuze | I154: =IF('1. Raming met kostenposten'!H154="Subsidiabel",'1. Raming met kostenposten'!G154,0) -> 0 | J154: maak een keuze
G155: 0 | H155: maak een keuze | I155: =IF('1. Raming met kostenposten'!H155="Subsidiabel",'1. Raming met kostenposten'!G155,0) -> 0 | J155: maak een keuze
G156: 0 | H156: maak een keuze | I156: =IF('1. Raming met kostenposten'!H156="Subsidiabel",'1. Raming met kostenposten'!G156,0) -> 0 | J156: maak een keuze
G157: 0 | H157: maak een keuze | I157: =IF('1. Raming met kostenposten'!H157="Subsidiabel",'1. Raming met kostenposten'!G157,0) -> 0 | J157: maak een keuze
G158: 0 | H158: maak een keuze | I158: =IF('1. Raming met kostenposten'!H158="Subsidiabel",'1. Raming met kostenposten'!G158,0) -> 0 | J158: maak een keuze
G159: 0 | H159: maak een keuze | I159: =IF('1. Raming met kostenposten'!H159="Subsidiabel",'1. Raming met kostenposten'!G159,0) -> 0 | J159: maak een keuze
G160: 0 | H160: maak een keuze | I160: =IF('1. Raming met kostenposten'!H160="Subsidiabel",'1. Raming met kostenposten'!G160,0) -> 0 | J160: maak een keuze
G161: 0 | H161: maak een keuze | I161: =IF('1. Raming met kostenposten'!H161="Subsidiabel",'1. Raming met kostenposten'!G161,0) -> 0 | J161: maak een keuze
G162: 0 | H162: maak een keuze | I162: =IF('1. Raming met kostenposten'!H162="Subsidiabel",'1. Raming met kostenposten'!G162,0) -> 0 | J162: maak een keuze
G163: 0 | H163: maak een keuze | I163: =IF('1. Raming met kostenposten'!H163="Subsidiabel",'1. Raming met kostenposten'!G163,0) -> 0 | J163: maak een keuze
G164: 0 | H164: maak een keuze | I164: =IF('1. Raming met kostenposten'!H164="Subsidiabel",'1. Raming met kostenposten'!G164,0) -> 0 | J164: maak een keuze
G165: 0 | H165: maak een keuze | I165: =IF('1. Raming met kostenposten'!H165="Subsidiabel",'1. Raming met kostenposten'!G165,0) -> 0 | J165: maak een keuze
G166: 0 | H166: maak een keuze | I166: =IF('1. Raming met kostenposten'!H166="Subsidiabel",'1. Raming met kostenposten'!G166,0) -> 0 | J166: maak een keuze
G167: 0 | H167: maak een keuze | I167: =IF('1. Raming met kostenposten'!H167="Subsidiabel",'1. Raming met kostenposten'!G167,0) -> 0 | J167: maak een keuze
G168: 0 | H168: maak een keuze | I168: =IF('1. Raming met kostenposten'!H168="Subsidiabel",'1. Raming met kostenposten'!G168,0) -> 0 | J168: maak een keuze
G169: 0 | H169: maak een keuze | I169: =IF('1. Raming met kostenposten'!H169="Subsidiabel",'1. Raming met kostenposten'!G169,0) -> 0 | J169: maak een keuze
G170: 0 | H170: maak een keuze | I170: =IF('1. Raming met kostenposten'!H170="Subsidiabel",'1. Raming met kostenposten'!G170,0) -> 0 | J170: maak een keuze
G171: 0 | H171: maak een keuze | I171: =IF('1. Raming met kostenposten'!H171="Subsidiabel",'1. Raming met kostenposten'!G171,0) -> 0 | J171: maak een keuze
G172: 0 | H172: maak een keuze | I172: =IF('1. Raming met kostenposten'!H172="Subsidiabel",'1. Raming met kostenposten'!G172,0) -> 0 | J172: maak een keuze
G173: 0 | H173: maak een keuze | I173: =IF('1. Raming met kostenposten'!H173="Subsidiabel",'1. Raming met kostenposten'!G173,0) -> 0 | J173: maak een keuze
G174: =D174*F174 -> 0 | H174: maak een keuze | I174: =IF('1. Raming met kostenposten'!H174="Subsidiabel",'1. Raming met kostenposten'!G174,0) -> 0 | J174: maak een keuze
G175: =D175*F175 -> 0 | H175: maak een keuze | I175: =IF('1. Raming met kostenposten'!H175="Subsidiabel",'1. Raming met kostenposten'!G175,0) -> 0 | J175: maak een keuze
G176: =D176*F176 -> 0 | H176: maak een keuze | I176: =IF('1. Raming met kostenposten'!H176="Subsidiabel",'1. Raming met kostenposten'!G176,0) -> 0 | J176: maak een keuze
G177: =D177*F177 -> 0 | H177: maak een keuze | I177: =IF('1. Raming met kostenposten'!H177="Subsidiabel",'1. Raming met kostenposten'!G177,0) -> 0 | J177: maak een keuze
G178: 0 | H178: maak een keuze | I178: =IF('1. Raming met kostenposten'!H178="Subsidiabel",'1. Raming met kostenposten'!G178,0) -> 0 | J178: maak een keuze
G179: 0 | H179: maak een keuze | I179: =IF('1. Raming met kostenposten'!H179="Subsidiabel",'1. Raming met kostenposten'!G179,0) -> 0 | J179: maak een keuze
G180: 0 | H180: maak een keuze | I180: =IF('1. Raming met kostenposten'!H180="Subsidiabel",'1. Raming met kostenposten'!G180,0) -> 0 | J180: maak een keuze
G181: 0 | H181: maak een keuze | I181: =IF('1. Raming met kostenposten'!H181="Subsidiabel",'1. Raming met kostenposten'!G181,0) -> 0 | J181: maak een keuze
G182: 0 | H182: maak een keuze | I182: =IF('1. Raming met kostenposten'!H182="Subsidiabel",'1. Raming met kostenposten'!G182,0) -> 0 | J182: maak een keuze
G183: 0 | H183: maak een keuze | I183: =IF('1. Raming met kostenposten'!H183="Subsidiabel",'1. Raming met kostenposten'!G183,0) -> 0 | J183: maak een keuze
G184: 0 | H184: maak een keuze | I184: =IF('1. Raming met kostenposten'!H184="Subsidiabel",'1. Raming met kostenposten'!G184,0) -> 0 | J184: maak een keuze
G185: 0 | H185: maak een keuze | I185: =IF('1. Raming met kostenposten'!H185="Subsidiabel",'1. Raming met kostenposten'!G185,0) -> 0 | J185: maak een keuze
G186: 0 | H186: maak een keuze | I186: =IF('1. Raming met kostenposten'!H186="Subsidiabel",'1. Raming met kostenposten'!G186,0) -> 0 | J186: maak een keuze
G187: 0 | H187: maak een keuze | I187: =IF('1. Raming met kostenposten'!H187="Subsidiabel",'1. Raming met kostenposten'!G187,0) -> 0 | J187: maak een keuze
G188: 0 | H188: maak een keuze | I188: =IF('1. Raming met kostenposten'!H188="Subsidiabel",'1. Raming met kostenposten'!G188,0) -> 0 | J188: maak een keuze
G189: 0 | H189: maak een keuze | I189: =IF('1. Raming met kostenposten'!H189="Subsidiabel",'1. Raming met kostenposten'!G189,0) -> 0 | J189: maak een keuze
G190: 0 | H190: maak een keuze | I190: =IF('1. Raming met kostenposten'!H190="Subsidiabel",'1. Raming met kostenposten'!G190,0) -> 0 | J190: maak een keuze
G191: 0 | H191: maak een keuze | I191: =IF('1. Raming met kostenposten'!H191="Subsidiabel",'1. Raming met kostenposten'!G191,0) -> 0 | J191: maak een keuze
G192: 0 | H192: maak een keuze | I192: =IF('1. Raming met kostenposten'!H192="Subsidiabel",'1. Raming met kostenposten'!G192,0) -> 0 | J192: maak een keuze
G193: 0 | H193: maak een keuze | I193: =IF('1. Raming met kostenposten'!H193="Subsidiabel",'1. Raming met kostenposten'!G193,0) -> 0 | J193: maak een keuze
G194: 0 | H194: maak een keuze | I194: =IF('1. Raming met kostenposten'!H194="Subsidiabel",'1. Raming met kostenposten'!G194,0) -> 0 | J194: maak een keuze
G195: 0 | H195: maak een keuze | I195: =IF('1. Raming met kostenposten'!H195="Subsidiabel",'1. Raming met kostenposten'!G195,0) -> 0 | J195: maak een keuze
G196: 0 | H196: maak een keuze | I196: =IF('1. Raming met kostenposten'!H196="Subsidiabel",'1. Raming met kostenposten'!G196,0) -> 0 | J196: maak een keuze
G197: 0 | H197: maak een keuze | I197: =IF('1. Raming met kostenposten'!H197="Subsidiabel",'1. Raming met kostenposten'!G197,0) -> 0 | J197: maak een keuze
G198: 0 | H198: maak een keuze | I198: =IF('1. Raming met kostenposten'!H198="Subsidiabel",'1. Raming met kostenposten'!G198,0) -> 0 | J198: maak een keuze
G199: 0 | H199: maak een keuze | I199: =IF('1. Raming met kostenposten'!H199="Subsidiabel",'1. Raming met kostenposten'!G199,0) -> 0 | J199: maak een keuze
G200: 0 | H200: maak een keuze | I200: =IF('1. Raming met kostenposten'!H200="Subsidiabel",'1. Raming met kostenposten'!G200,0) -> 0 | J200: maak een keuze
G201: 0 | H201: maak een keuze | I201: =IF('1. Raming met kostenposten'!H201="Subsidiabel",'1. Raming met kostenposten'!G201,0) -> 0 | J201: maak een keuze
G202: 0 | H202: maak een keuze | I202: =IF('1. Raming met kostenposten'!H202="Subsidiabel",'1. Raming met kostenposten'!G202,0) -> 0 | J202: maak een keuze
G203: 0 | H203: maak een keuze | I203: =IF('1. Raming met kostenposten'!H203="Subsidiabel",'1. Raming met kostenposten'!G203,0) -> 0 | J203: maak een keuze
G204: =D204*F204 -> 0 | H204: maak een keuze | I204: =IF('1. Raming met kostenposten'!H204="Subsidiabel",'1. Raming met kostenposten'!G204,0) -> 0 | J204: maak een keuze
... 193 more rows

Sheet 2. Kostenoverzicht SSK
C1: Begrotingsformat Veilige Infra en Doorfietsroutes 2025 | D1: Dit tabblad is niet bewerkbaar, en wordt automatisch gevuld op basis van de ingevoerde gegevens in tabblad 1.
C2: 2. Kostenoverzicht SSK
C4: ='1. Raming met kostenposten'!C3 -> Naam project | J4: Totaal
H5: Voorziene kosten | I5: Risicoreservering
F6: Directe kosten | G6: Indirecte kosten
D7: Directe kosten - benoemd | E7: Directe kosten - nader te detailleren
C9: Investeringskosten:
C11: Bouwkosten | D11: ='1. Raming met kostenposten'!G323 -> 0.001 | E11: ='1. Raming met kostenposten'!G325 -> 0.00015 | F11: =D11+E11 -> 0.00115 | G11: ='1. Raming met kostenposten'!G343 -> 0.0003649916 | H11: =F11+G11 -> 0.0015149916 | I11: ='1. Raming met kostenposten'!G349 -> 0.00015149916 | J11: =H11+I11 -> 0.00166649076
C13: Engineeringskosten | D13: ='1. Raming met kostenposten'!G358 -> 0 | E13: ='1. Raming met kostenposten'!G360 -> 0 | F13: =SUM(D13:E13) -> 0 | G13: ='1. Raming met kostenposten'!G370 -> 0 | H13: =F13+G13 -> 0 | I13: ='1. Raming met kostenposten'!G376 -> 0 | J13: =SUM(H13:I13) -> 0
C15: Vastgoedkosten | D15: ='1. Raming met kostenposten'!G387 -> 0 | E15: ='1. Raming met kostenposten'!G389 -> 0 | F15: =SUM(D15:E15) -> 0 | G15: ='1. Raming met kostenposten'!G399 -> 0 | H15: =SUM(F15:G15) -> 0 | I15: ='1. Raming met kostenposten'!G405 -> 0 | J15: =SUM(H15:I15) -> 0
C17: Overige bijkomende kosten | D17: ='1. Raming met kostenposten'!G422 -> 0 | E17: ='1. Raming met kostenposten'!G424 -> 0 | F17: =SUM(D17:E17) -> 0 | G17: ='1. Raming met kostenposten'!G434 -> 0 | H17: =SUM(F17:G17) -> 0 | I17: ='1. Raming met kostenposten'!G440 -> 0 | J17: =SUM(H17:I17) -> 0
C19: Subtotaal | D19: =SUM(D17,D13,D15,D11) -> 0.001 | E19: 0.00015 | F19: 0.00115 | G19: 0.0003649916 | H19: 0.0015149916 | I19: 0.00015149916 | J19: 0.00166649076
C21: =IF('[4]Obj.overst.risicoreservering'!$B$3=FALSE,"Objectoverstijgende risico's"&" (= niet meegenomen)","Objectoverstijgende risicoreservering") -> Objectoverstijgende risicoreservering | I21: ='1. Raming met kostenposten'!G446 -> 0 | J21: =I21 -> 0
C22: Investeringskosten deterministisch | D22: =SUM(D21,D19) -> 0.001 | E22: 0.00015 | F22: 0.00115 | G22: 0.0003649916 | H22: 0.0015149916 | I22: 0.00015149916 | J22: 0.00166649076
C24: Verschuiving | I24: =IF(OR($O$18=0,O24=0),0,O24/(1+$P$18)) -> 0 | J24: =I24 -> 0
C26: Investeringskosten exclusief BTW | D26: =SUM(D24,D22) -> 0.001 | E26: 0.00015 | F26: 0.00115 | G26: 0.0003649916 | H26: 0.0015149916 | I26: 0.00015149916 | J26: 0.00166649076
C28: BTW | J28: ='1. Raming met kostenposten'!G456 -> 0.0003499630596
C30: =IF(SSK.BTW=1,"Investeringskosten inclusief BTW","Investeringskosten exclusief BTW")&" (reële kosten)" -> Investeringskosten inclusief BTW (reële kosten) | J30: =SUM(J28,J26) -> 0.00201645382

Sheet 3. Subsidieblad
B1: Begrotingsformat Veilige Infra en Doorfietsroutes 2025 | D1: Dit tabblad is niet bewerkbaar, en wordt automatisch gevuld op basis van de ingevoerde gegevens in tabblad 1.
B2: 3. Subsidieblad
B8: ='1. Raming met kostenposten'!C3 -> Naam project | D8: Subsidiabele Bouwkosten | E8: Subsidiabele Overige Bijkomende kosten | F8: Totaal Subsidiabele kosten | G8: GEVRAAGDE SUBSIDIE
G9: percentage | H9: bedrag
B10: Directe kosten | D10: ='1. Raming met kostenposten'!I327 -> 0 | E10: ='1. Raming met kostenposten'!I426 -> 0 | F10: =D10+E10 -> 0 | G10: =_xlfn.IFS('1. Raming met kostenposten'!H12="maak een keuze",0,'1. Raming met kostenposten'!H12=35%,'1. Raming met kostenposten'!H12,'1. Raming met kostenposten'!H12=75%,+'1. Raming met kostenposten'!H12,'1. Raming met kostenposten'!H12=90%,+'1. Raming met kostenposten'!H12,'1. Raming met kostenposten'!H12="Maatwerk",+'1. Raming met kostenposten'!H13) -> 0 | H10: =F10*G10 -> 0
B11: Indirecte kosten | D11: ='1. Raming met kostenposten'!I343 -> 0 | E11: ='1. Raming met kostenposten'!I434 -> 0 | F11: =D11+E11 -> 0 | H11: =F11*G10 -> 0
B12: TOTAAL DIRECTE + INDIRECTE KOSTEN | F12: =F10+F11 -> 0 | H12: =H10+H11 -> 0
